{"text_format":"1","workbook":"xlsx","n_sheets":7,"sheets":["All Excess","Current Excess","Snapshot","Report","Taken","Labels","NAMES"],"not_rendered":{"charts":0,"images":0,"macros":1,"external_links":1,"defined_names":1,"comments":1,"pivot_tables":0},"unopened":[],"bounds":{"document_bytes":16777216,"sheet_cells":100000,"rows_first":2000,"rows_last":500,"rows_between":2000,"halvings":0,"cell_chars":16384,"cell_head_chars":4096},"cells_cut":0,"cells_raw":0,"read":"whole","date_system":"1900"}

{"sheet":"All Excess","index":0,"n_rows":55,"n_cols":12,"rows_kept":55,"cut":false,"hidden":false,"merged":[[0,0,0,11]]}
["All Excess List (as of 10/28/2011)"]
["ID/Item Code","Work Order","Seq#","Manufacturer","Model","Quantity","Cost (EA)","Description","Entered Date","Location","MM Employee","Qty Remaining"]
["?EX1","IT-757-1",259,"Kramer","FC-46",4,304.89,"Kramer FC-46 HDMI Audio De-embedder","2011-11-03","W3A3","nfreebie",{"$f":"F3","v":4}]
["?EX2","IT-757-1",340,"Kramer","KRFC47",4,198.64,"FC-47 HDMI TO DVI & S/PDIF AUDIO FORMAT CONVERTER P/N KRFC47","2011-11-03","W3A3","nfreebie",4]
["?EX3","IT-807-1",11,"Atlas Sound","BT720-4",2,34.81,"Atlas Sound BT720-4 4\" loudspeaker/transformer/baffle assembly","2011-11-04","W3A2","nfreebie",2]
["?EX4","OH-3614-1",1765,"Extron","70-147-72",2,248,"EXTRON TERMINATION KIT\r P/N EXTRON 70-147-72 DA EXTENDER AAP EX BLACK","2011-11-18","W3A3","nfreebie",2]
["?EX5","PF-463-1",15,"Extron","MAV 44",1,605.5,"Extron MAV 44 AV RCA 4x4 Composite Video & Stereo Audio Matrix Switcher","2011-11-18","W3A3","nfreebie",1]
["?EX6","SC-14049-1",2,"CRESTRON","PW-2410RU",6,81,"POWER SUPPLIES FOR CRESTRON   MP-2E  CONTROLLER","2011-11-18","W3A3","nfreebie",6]
["?EX7","PP-307-2",240,"EXTRON","60-450-01",1,321,"EXTRON TP R 15HD A TWISTED PAIR RECEIVER","2011-11-18","W3A3","nfreebie",1]
["?EX8","PM-701-1",43,"Sennheiser","EKI 1029 PLL",20,318.75,"Sennheiser EKI 1029 PLL 32 * 32-channel infrared receiver","2011-11-18","OUT","nfreebie",{"$f":"F10-Taken!$F$3","v":0}]
["?EX9","PF-111-19",22,"RDL","STR-19B",2,111.93,"Rack mounting for 10 stick-ons","2011-11-18","W3A3","nfreebie",{"$f":"F11","v":2}]
["?EX10","IT-370-1",10,"TOA","D-922E",3,75.25,"TOA D-922E INPUT MODULE","2011-11-18","W3B3","nfreebie",3]
["?EX11","PF-325-4",6,"TOA","D-971E",2,135,"TOA D-971E OUTPUT MODULE","2011-11-18","W3B3","nfreebie",2]
["?EX12","IT-217-3",8,"TOA","D-922E",3,79,"TOA D-922E MIC/LINE INPUT MODULE, with 20 bit A/D","2011-11-18","W3B3","nfreebie",3]
["?EX13","IT-370-1",12,"TOA","D-983",1,194.75,"TOA D-983 REMOTE CONTROL MODULE","2011-11-18","W3B3","nfreebie",1]
["?EX14","IT-80-1",27,"TOA","D-981",1,87,"TOA REMOTE CONTROL MODULE D-981","2011-11-18","W3B3","nfreebie",1]
["?EX15","IT-370-1",6,"TOA","D-901",1,1046.5,"TOA D-901 DSP MIXER MAIN FRAME","2011-11-18","W3B3","nfreebie",1]
["?EX16","PM-6194-1",3,"TOA","A-906",1,100,"TOA A-906MK2 AMPLIFIER","2011-11-18","W3B3","nfreebie",1]
["?EX17","--","-","TOA","MP-032B",1,200,"TOA MP-032B","2011-11-18","W3B3","nfreebie",1]
["?EX18","IT-868-1",30,"Chief","TPMUB",1,232.24,"Chief TPMUB Flat Panel Tilt Pole Mount (Up to 63\")","2011-11-22","OUT","nfreebie",{"$f":"F20-Taken!$F$4","v":0}]
["?EX19","PF-412-18",10,"Listen Technologies","LT-800-072",1,476,"Listen Technologies LT-800-072 * Stationary FM Transmiter, 72 MHz","2011-11-22","OUT","nfreebie",{"$f":"F21-Taken!$F$5","v":0}]
["?EX20","PM-5083-1",5,"RDL","ST-UMX3",2,101.32,"Radio Design Labs ST-UMX3 Universal Audio Mixer - 3 Mic or Line x 1 Mic or Line","2011-11-22","OUT","nfreebie",{"$f":"F22-Taken!$F$6","v":0}]
["?EX21","IT-842-1",10,"Listen Technologies","LT-800-72-01",1,537.17999999999995,"Listen Tech LT-800-72-01 * Stationary FM transmitter, 72 MHz","2011-11-22","OUT","nfreebie",{"$f":"F23-Taken!$F$7","v":0}]
["?EX22","PP-320-1",5,"RDL","PS-24U2",1,48.35,"Radio Design Labs PS-24U2 * 24 Vdc 2 A Switching Supply - (no cord) - dc Plug","2011-11-22","OUT","nfreebie",{"$f":"F24-Taken!$F$8","v":0}]
["?EX23","IT-94-1",6,"Listen Technologies","LA-326",1,44,"LISTEN TECHNOLOGIES LA-326: RACKMOUNT KIT","2011-11-22","OUT","nfreebie",{"$f":"F25-Taken!$F$9","v":0}]
["?EX24","IT-370-1",9,"Middle Atlantic","DWR-12-22",1,284.11,"Middle Atlantic DWR-12-22 * Equipment Rack, 12 space (21 inch), wall mount, sectional","2011-11-22","OUT","nfreebie",{"$f":"F26-Taken!$F$10","v":0}]
["?EX25","IT-707-1",2,"FM Systems","ALM-473",1,636.52,"FM Systems ALM-473, Stereo auio level master to fit DMS-400","2011-11-23","OUT","nfreebie",{"$f":"F27-Taken!$F$11","v":0}]
["?EX26","IT-707-1",1,"FM Systems","RMS-400",1,494,"FM Systems RMS-400, Power supply and mainframe","2011-11-23","OUT","nfreebie",{"$f":"F28-Taken!$F$12","v":0}]
["?EX27","PF-600-1",23,"Belden",8778,1,527.5,"BELDEN 8778 CABLE 500FT","2011-11-23","OUT","nfreebie",{"$f":"F29-Taken!$F$13","v":0}]
["?EX28","IT-217-24",19,"Electro-Voice","ZX5",1,111.68,"ZX5 SPEAKER SYSTEM MOUNTING BRACKET P/N EV MB5-B","2011-11-23","ELLS","nfreebie",{"$f":"F30","v":1}]
["?EX29","IT-430-1",1,"Electro-Voice","SX-300E",2,417.99,"Electro-Voice SX-300E * 12-INCH , 300 WATT, TWO-WAY COMPACT SPEAKER SYSTEM","2011-11-23","ELLS","nfreebie",2]
["?EX30","IT-502-1",17,"Stantron","HDSS1919",18,143,"Stantron HDSS1919  19\" Rackmountable Heavy Duty Roll Out Shelf, Vented, 150# Capacity, 19.25\"","2011-11-23","ELLS","nfreebie",18]
["?EX31","PF-409-1",313,"Sharp","AN-52SP1",3,383.45,"Sharp AN-52SP1 matched audio loudspeakers for a PN-525U Professional Large Format LCD ","2011-11-23","ELLS","nfreebie",3]
["?EX32","IT-329-1",5,"Electro-Voice","C10.1",5,257,"Electro-Voice EVID C10.1 * Ceiling Subwoofer","2011-11-23","ELLS","nfreebie",5]
["?EX33","PF-452-16",3,"Electro-Voice","C10.1",9,262,"Electro-Voice EVID C10.1 * Ceiling mounted 10 inch subwoofer loudspeaker system","2011-11-23","ELLS","nfreebie",9]
["?EX34","PF-326-181",15,"Atlas","FAP62T",17,61.9,"Atlas FAP62T * ceiling loudspeaker system, 6 inch coaxial, with built-in 70V transformer","2011-11-23","ELLS","nfreebie",17]
["?EX35","IT-543-1",18,"Atlas","FAP40T",4,38.32,"Atlas Sound FAP40T 70 Volt speaker","2011-11-23","ELLS","nfreebie",4]
["?EX36","IT-410-1",20,"Electro-Voice","SX500",2,610,"Electro-Voice SX 500 SPEAKERS BLACK","2011-11-23","ELLS","nfreebie",2]
["?EX37","PF-111-32",45,"Middle Atlantic","WRP-6",1,249.94,"Middle Atlantic Products, Inc. Low Profile Wall Mount Cabinet. Part# WRP-6","2011-11-23","ELLS","nfreebie",1]
["?EX38","IT-264-1",49,"Kathrein","-",1,690,"KATHREIN PR-TV, ANTENNA PARAFLECTOR ANTENNA 1.5 TO 17 DB","2011-11-23","ELLS","nfreebie",1]
["?EX39","PF-416-6",2,"Panasonic","WV-7015",1,38.799999999999997,"Panasonic WV-7015 Bracket, Wall mount","2011-11-23","OUT","nfreebie",{"$f":"F41-Taken!$F$14","v":0}]
["?EX40","PM-4998-1",2,"Crestron","TPS-4LA",1,673,"CRESTRON TOUCH PANEL SCREEN P/N TPS-4LA","2011-11-23","OUT","nfreebie",{"$f":"F42-Taken!$F$15","v":0}]
["?EX41","IT-625-1",10,"Chief","PRO2458",1,155,"Chief Pro2458 Flat Panel TV Mount","2011-12-06","OUT","nfreebie",{"$f":"F43-Taken!$F$16","v":0}]
["?EX42","IT-797-1",2,"Chief","-",1,77.63,"CHIEF MOUNT MSAU FUSION UNIVERSAL FIXED WALL MOUNT 26-47\" DISPLAYS","2011-12-06","OUT","nfreebie",{"$f":"F44-Taken!$F$17","v":0}]
["?EX43","IT-1000-1",1,"Xirrus","XN8",1,1878.36,"8 RADIO 801.11A/B/G/N WI-FI ARRAY HARDWARE MODEL# XN8","2011-12-06","OUT","nfreebie",{"$f":"F45-Taken!$F$18","v":0}]
["?EX44","IT-757-1",131,"Chief","PLP16",1,139.82,"Chief PLP16 tilt wall mount for 52-60\" TV, black.","2011-12-06","OUT","nfreebie",{"$f":"F46-Taken!$F$19","v":0}]
["?EX45","IT-757-1",133,"Chief","MSBUB",1,86,"Chief MSBUB interface bracket for 40\" TV, black.","2011-12-06","OUT","nfreebie",{"$f":"F47-Taken!$F$20","v":0}]
["?EX46","SC-20671-1",1,"Crestron","TPS-4LA",1,673,"CRESTRON  TPS-4LA   TOUCH PAD CONTROL","2011-12-06","OUT","nfreebie",{"$f":"F48-Taken!$F$21","v":0}]
["?EX47","IT-906-1",8,"Middle Atlantic","BRK14",1,95,"Middle Atlantic BRK14, 14RU laminated rack, black.","2011-12-06","W3B1","nfreebie",{"$f":"$F$49","v":1}]
["?EX48","IT-906-1",7,"Middle Atlantic","SRSR-2-12",1,325,"Middle Atlantic SRSR-2-12, 12RU sliding/pivoting rail system.","2011-12-06","W3A1","nfreebie",{"$f":"$F$50","v":1}]
["?EX49","--","-","Middle Atlantic","UD3",1,80,"MIDDLE ATLANTIC UD3 UTILITY DRAWER","2011-12-06","W3A3","nfreebie",{"$f":"$F$51","v":1}]
["?EX50","IT-567-8",2,"Sony","D380P",1,86,"DVD/VHS PLAYER SLV D380P","2011-12-06","W3C3","nfreebie",{"$f":"$F$52","v":1}]
["?EX51","IT-779-1",19,"Extron","60-849-01",1,385,"Extron XPA 1002 * stereo power amplifier - 100 watts per channel PN EXTRON 60-849-01","2011-12-06","W3C3","nfreebie",{"$f":"$F$53","v":1}]
["?EX52","IT-917-1",13,"RDL","RU-MLA2T",1,320,"RDL RU-MLA2T dual mic preamp.","2011-12-06","W3C3","nfreebie",{"$f":"$F$54","v":1}]
["?EX53","IF-40-1",5,"Minicom","0VS60010A",1,348.9,"Minicom DS Vision Digital Receiver 0VS60010A","2011-12-06","W3C3","nfreebie",{"$f":"$F$55","v":1}]

{"sheet":"Current Excess","index":1,"n_rows":36,"n_cols":12,"rows_kept":36,"cut":false,"hidden":false,"merged":[[0,0,0,11]]}
["Current Excess"]
["ID/Item Code","Work Order","Seq#","Manufacturer","Model","Quantity","Cost (EA)","Description","Entered Excess Date","Location","MM Employee","Qty Remaining"]
["?EX1","IT-757-1",259,"Kramer","FC-46",4,304.89,"Kramer FC-46 HDMI Audio De-embedder","2011-11-03","W3A3","nfreebie",4]
["?EX2","IT-757-1",340,"Kramer","KRFC47",4,198.64,"FC-47 HDMI TO DVI & S/PDIF AUDIO FORMAT CONVERTER P/N KRFC47","2011-11-03","W3A3","nfreebie",4]
["?EX3","IT-807-1",11,"Atlas Sound","BT720-4",2,34.81,"Atlas Sound BT720-4 4\" loudspeaker/transformer/baffle assembly","2011-11-04","W3A2","nfreebie",2]
["?EX4","OH-3614-1",1765,"Extron","70-147-72",2,248,"EXTRON TERMINATION KIT\r P/N EXTRON 70-147-72 DA EXTENDER AAP EX BLACK","2011-11-18","W3A3","nfreebie",2]
["?EX5","PF-463-1",15,"Extron","MAV 44",1,605.5,"Extron MAV 44 AV RCA 4x4 Composite Video & Stereo Audio Matrix Switcher","2011-11-18","W3A3","nfreebie",1]
["?EX6","SC-14049-1",2,"CRESTRON","PW-2410RU",6,81,"POWER SUPPLIES FOR CRESTRON   MP-2E  CONTROLLER","2011-11-18","W3A3","nfreebie",6]
["?EX7","PP-307-2",240,"EXTRON","60-450-01",1,321,"EXTRON TP R 15HD A TWISTED PAIR RECEIVER","2011-11-18","W3A3","nfreebie",1]
["?EX9","PF-111-19",22,"RDL","STR-19B",2,111.93,"Rack mounting for 10 stick-ons","2011-11-18","W3A3","nfreebie",2]
["?EX10","IT-370-1",10,"TOA","D-922E",3,75.25,"TOA D-922E INPUT MODULE","2011-11-18","W3B3","nfreebie",3]
["?EX11","PF-325-4",6,"TOA","D-971E",2,135,"TOA D-971E OUTPUT MODULE","2011-11-18","W3B3","nfreebie",2]
["?EX12","IT-217-3",8,"TOA","D-922E",3,79,"TOA D-922E MIC/LINE INPUT MODULE, with 20 bit A/D","2011-11-18","W3B3","nfreebie",3]
["?EX13","IT-370-1",12,"TOA","D-983",1,194.75,"TOA D-983 REMOTE CONTROL MODULE","2011-11-18","W3B3","nfreebie",1]
["?EX14","IT-80-1",27,"TOA","D-981",1,87,"TOA REMOTE CONTROL MODULE D-981","2011-11-18","W3B3","nfreebie",1]
["?EX15","IT-370-1",6,"TOA","D-901",1,1046.5,"TOA D-901 DSP MIXER MAIN FRAME","2011-11-18","W3B3","nfreebie",1]
["?EX16","PM-6194-1",3,"TOA","A-906",1,100,"TOA A-906MK2 AMPLIFIER","2011-11-18","W3B3","nfreebie",1]
["?EX17","--","-","TOA","MP-032B",1,200,"TOA MP-032B","2011-11-18","W3B3","nfreebie",1]
["?EX28","IT-217-24",19,"Electro-Voice","ZX5",1,111.68,"ZX5 SPEAKER SYSTEM MOUNTING BRACKET P/N EV MB5-B","2011-11-23","ELLS","nfreebie",1]
["?EX29","IT-430-1",1,"Electro-Voice","SX-300E",2,417.99,"Electro-Voice SX-300E * 12-INCH , 300 WATT, TWO-WAY COMPACT SPEAKER SYSTEM","2011-11-23","ELLS","nfreebie",2]
["?EX30","IT-502-1",17,"Stantron","HDSS1919",18,143,"Stantron HDSS1919  19\" Rackmountable Heavy Duty Roll Out Shelf, Vented, 150# Capacity, 19.25\"","2011-11-23","ELLS","nfreebie",18]
["?EX31","PF-409-1",313,"Sharp","AN-52SP1",3,383.45,"Sharp AN-52SP1 matched audio loudspeakers for a PN-525U Professional Large Format LCD ","2011-11-23","ELLS","nfreebie",3]
["?EX32","IT-329-1",5,"Electro-Voice","C10.1",5,257,"Electro-Voice EVID C10.1 * Ceiling Subwoofer","2011-11-23","ELLS","nfreebie",5]
["?EX33","PF-452-16",3,"Electro-Voice","C10.1",9,262,"Electro-Voice EVID C10.1 * Ceiling mounted 10 inch subwoofer loudspeaker system","2011-11-23","ELLS","nfreebie",9]
["?EX34","PF-326-181",15,"Atlas","FAP62T",17,61.9,"Atlas FAP62T * ceiling loudspeaker system, 6 inch coaxial, with built-in 70V transformer","2011-11-23","ELLS","nfreebie",17]
["?EX35","IT-543-1",18,"Atlas","FAP40T",4,38.32,"Atlas Sound FAP40T 70 Volt speaker","2011-11-23","ELLS","nfreebie",4]
["?EX36","IT-410-1",20,"Electro-Voice","SX500",2,610,"Electro-Voice SX 500 SPEAKERS BLACK","2011-11-23","ELLS","nfreebie",2]
["?EX37","PF-111-32",45,"Middle Atlantic","WRP-6",1,249.94,"Middle Atlantic Products, Inc. Low Profile Wall Mount Cabinet. Part# WRP-6","2011-11-23","ELLS","nfreebie",1]
["?EX38","IT-264-1",49,"Kathrein","-",1,690,"KATHREIN PR-TV, ANTENNA PARAFLECTOR ANTENNA 1.5 TO 17 DB","2011-11-23","ELLS","nfreebie",1]
["?EX47","IT-906-1",8,"Middle Atlantic","BRK14",1,95,"Middle Atlantic BRK14, 14RU laminated rack, black.","2011-12-06","W3B1","nfreebie",1]
["?EX48","IT-906-1",7,"Middle Atlantic","SRSR-2-12",1,325,"Middle Atlantic SRSR-2-12, 12RU sliding/pivoting rail system.","2011-12-06","W3A1","nfreebie",1]
["?EX49","--","-","Middle Atlantic","UD3",1,80,"MIDDLE ATLANTIC UD3 UTILITY DRAWER","2011-12-06","W3A3","nfreebie",1]
["?EX50","IT-567-8",2,"Sony","D380P",1,86,"DVD/VHS PLAYER SLV D380P","2011-12-06","W3C3","nfreebie",1]
["?EX51","IT-779-1",19,"Extron","60-849-01",1,385,"Extron XPA 1002 * stereo power amplifier - 100 watts per channel PN EXTRON 60-849-01","2011-12-06","W3C3","nfreebie",1]
["?EX52","IT-917-1",13,"RDL","RU-MLA2T",1,320,"RDL RU-MLA2T dual mic preamp.","2011-12-06","W3C3","nfreebie",1]
["?EX53","IF-40-1",5,"Minicom","0VS60010A",1,348.9,"Minicom DS Vision Digital Receiver 0VS60010A","2011-12-06","W3C3","nfreebie",1]

{"sheet":"Snapshot","index":2,"n_rows":36,"n_cols":6,"rows_kept":36,"cut":false,"hidden":false,"merged":[[0,0,0,5]]}
["Current Excess Snapshot"]
["ID/Item Code","Manufacturer","Model","Quantity","Cost (EA)","Description"]
["?EX1","Kramer","FC-46",4,304.89,"Kramer FC-46 HDMI Audio De-embedder"]
["?EX2","Kramer","KRFC47",4,198.64,"FC-47 HDMI TO DVI & S/PDIF AUDIO FORMAT CONVERTER P/N KRFC47"]
["?EX3","Atlas Sound","BT720-4",2,34.81,"Atlas Sound BT720-4 4\" loudspeaker/transformer/baffle assembly"]
["?EX4","Extron","70-147-72",2,248,"EXTRON TERMINATION KIT\r P/N EXTRON 70-147-72 DA EXTENDER AAP EX BLACK"]
["?EX5","Extron","MAV 44",1,605.5,"Extron MAV 44 AV RCA 4x4 Composite Video & Stereo Audio Matrix Switcher"]
["?EX6","CRESTRON","PW-2410RU",6,81,"POWER SUPPLIES FOR CRESTRON   MP-2E  CONTROLLER"]
["?EX7","EXTRON","60-450-01",1,321,"EXTRON TP R 15HD A TWISTED PAIR RECEIVER"]
["?EX9","RDL","STR-19B",2,111.93,"Rack mounting for 10 stick-ons"]
["?EX10","TOA","D-922E",3,75.25,"TOA D-922E INPUT MODULE"]
["?EX11","TOA","D-971E",2,135,"TOA D-971E OUTPUT MODULE"]
["?EX12","TOA","D-922E",3,79,"TOA D-922E MIC/LINE INPUT MODULE, with 20 bit A/D"]
["?EX13","TOA","D-983",1,194.75,"TOA D-983 REMOTE CONTROL MODULE"]
["?EX14","TOA","D-981",1,87,"TOA REMOTE CONTROL MODULE D-981"]
["?EX15","TOA","D-901",1,1046.5,"TOA D-901 DSP MIXER MAIN FRAME"]
["?EX16","TOA","A-906",1,100,"TOA A-906MK2 AMPLIFIER"]
["?EX17","TOA","MP-032B",1,200,"TOA MP-032B"]
["?EX28","Electro-Voice","ZX5",1,111.68,"ZX5 SPEAKER SYSTEM MOUNTING BRACKET P/N EV MB5-B"]
["?EX29","Electro-Voice","SX-300E",2,417.99,"Electro-Voice SX-300E * 12-INCH , 300 WATT, TWO-WAY COMPACT SPEAKER SYSTEM"]
["?EX30","Stantron","HDSS1919",18,143,"Stantron HDSS1919  19\" Rackmountable Heavy Duty Roll Out Shelf, Vented, 150# Capacity, 19.25\""]
["?EX31","Sharp","AN-52SP1",3,383.45,"Sharp AN-52SP1 matched audio loudspeakers for a PN-525U Professional Large Format LCD "]
["?EX32","Electro-Voice","C10.1",5,257,"Electro-Voice EVID C10.1 * Ceiling Subwoofer"]
["?EX33","Electro-Voice","C10.1",9,262,"Electro-Voice EVID C10.1 * Ceiling mounted 10 inch subwoofer loudspeaker system"]
["?EX34","Atlas","FAP62T",17,61.9,"Atlas FAP62T * ceiling loudspeaker system, 6 inch coaxial, with built-in 70V transformer"]
["?EX35","Atlas","FAP40T",4,38.32,"Atlas Sound FAP40T 70 Volt speaker"]
["?EX36","Electro-Voice","SX500",2,610,"Electro-Voice SX 500 SPEAKERS BLACK"]
["?EX37","Middle Atlantic","WRP-6",1,249.94,"Middle Atlantic Products, Inc. Low Profile Wall Mount Cabinet. Part# WRP-6"]
["?EX38","Kathrein","-",1,690,"KATHREIN PR-TV, ANTENNA PARAFLECTOR ANTENNA 1.5 TO 17 DB"]
["?EX47","Middle Atlantic","BRK14",1,95,"Middle Atlantic BRK14, 14RU laminated rack, black."]
["?EX48","Middle Atlantic","SRSR-2-12",1,325,"Middle Atlantic SRSR-2-12, 12RU sliding/pivoting rail system."]
["?EX49","Middle Atlantic","UD3",1,80,"MIDDLE ATLANTIC UD3 UTILITY DRAWER"]
["?EX50","Sony","D380P",1,86,"DVD/VHS PLAYER SLV D380P"]
["?EX51","Extron","60-849-01",1,385,"Extron XPA 1002 * stereo power amplifier - 100 watts per channel PN EXTRON 60-849-01"]
["?EX52","RDL","RU-MLA2T",1,320,"RDL RU-MLA2T dual mic preamp."]
["?EX53","Minicom","0VS60010A",1,348.9,"Minicom DS Vision Digital Receiver 0VS60010A"]

{"sheet":"Report","index":3,"n_rows":3,"n_cols":6,"rows_kept":3,"cut":false,"hidden":false,"merged":[[0,0,0,5]]}
["Excess Report"]
["As Of Date","Current Value","Assigned","Surplus","Total Change","Percent Change"]
["Beginning (11/8/2011)",33476.68,0,0,0,0]

{"sheet":"Taken","index":4,"n_rows":21,"n_cols":6,"rows_kept":21,"cut":false,"hidden":true,"merged":[[0,0,0,5]]}
["Taken Excess"]
["ID/Item Code","Taken NetID","Taken Name","Taken WO","Taken Date","Qty Taken"]
["?EX8","JAL","Jim Low","PM-701-1","2011-11-18",20]
["?EX18","rar6","Randy Rowe","IT-868-1","2011-11-22",1]
["?EX19","rar6","Randy Rowe","IF-85-1","2011-11-22",1]
["?EX20","rar6","Randy Rowe","IF-85-1","2011-11-22",2]
["?EX21","rar6","Randy Rowe","IF-85-1","2011-11-22",1]
["?EX22","rar6","Randy Rowe","IF-85-1","2011-11-22",1]
["?EX23","rar6","Randy Rowe","IF-85-1","2011-11-22",1]
["?EX24","cat58","Cesar Tavares","OH-9194-1","2011-11-22",1]
["?EX25","dja","David Allred","DF-94-1","2011-11-23",1]
["?EX26","dja","David Allred","IT-945-3","2011-11-23",1]
["?EX27","mhc38","Michael Carpenter","DF-94-1","2011-11-23",1]
["?EX39","csb42","Carlos Bassett","OH-9194-1","2011-11-23",1]
["?EX40","stock","Put into Stock","OH-9194-1","2011-11-23",1]
["?EX41","GREIG","UNKNOWN (Talk to Andrew)","OH-9194-1","2011-12-06",1]
["?EX42","smarcy","Spencer Marcy","OH-9194-1","2011-12-06",1]
["?EX43","CSB42","Carlos Bassett","OH-9194-1","2011-12-06",1]
["?EX44","greig","UNKNOWN (Talk to Andrew)","OH-9194-1","2011-12-06",1]
["?EX45","greig","UNKNOWN (Talk to Andrew)","OH-9194-1","2011-12-06",1]
["?EX46","stock","Put into Stock","OH-9194-1","2011-12-06",1]

{"sheet":"Labels","index":5,"n_rows":8,"n_cols":4,"rows_kept":8,"cut":false,"hidden":true,"merged":[]}
["ID","Manufacturer","Model","Description"]
["?EX31","Sharp","AN-52SP1","matched audio loudspeaker"]
["?EX32","Electro-Voice","C10.1","EVID * Ceiling Subwoofer"]
["?EX33","Electro-Voice","C10.1","EVID * Ceiling mounted 10"]
["?EX34","Atlas","FAP62T","* ceiling loudspeaker sys"]
["?EX35","Atlas","FAP40T","Sound 70 Volt speaker"]
["?EX36","Electro-Voice","SX500","SX 500 SPEAKERS BLACK"]
["?EX51","Extron","60-849-01","XPA 1002 * stereo power a"]

{"sheet":"NAMES","index":6,"n_rows":155,"n_cols":2,"rows_kept":155,"cut":false,"hidden":true,"merged":[]}
["ALEXLA09","Alex La"]
["ANTHON2","Anthony Wadsworth"]
["ATKIN3","Max Atkinson"]
["BAH4","Brad Hewitt"]
["BAIN","John Gaskin"]
["BARTH","Bart Harrison"]
["bbrown3","Frank Brown"]
["BENRINDY","Benjamin Rindlisbacher"]
["BENTURLE","Benjamin Turley"]
["BGM540","Brandon McBeth"]
["BM382","Bryant Magleby"]
["BNW","Blair Warner"]
["BRAD","Brad Hewitt"]
["BRANDONW","Brandon Wagner"]
["BRYCEALA","Bryce Anderson"]
["BS3","Brad Streeter"]
["BVO","Val Ogden"]
["BZOBELL","Brock Zobell"]
["CARLIENW","Carlie Wallentine"]
["CARLWH","Carl Hancock"]
["CAS268","Charles Schreiber"]
["CAT58","Cesar Tavares"]
["CCARO","Craig Caro"]
["CDH7","Cecil Harrison"]
["CEM48","Craig Malquist"]
["CHADLOCK","Christopher Hadlock"]
["CLC6","Charles Cox"]
["CLEMENSJ","James Clemens"]
["COASTOE4","Cory Christensen"]
["CS3","Carol Sant"]
["CSB42","Carlos Bassett"]
["CSTAM","Carson Stam"]
["CUSTOMERS","Non-OIT Personel"]
["DAVIDDT","David Tolman"]
["DBB45","David Burnett"]
["DDMASTIN","Daryl Mastin"]
["DF70","One of Daryl's lackeys"]
["DGS27","Darin Stephens"]
["DJA","David Allred"]
["DLR54","Dave Roquemore"]
["DLW3","Cecil Harrison"]
["DPW8","Daniel Wells"]
["DRB8","Dale Bascom"]
["ENGLE","Ross Engle"]
["EUGENEL","Eugene Lilly"]
["GOAL","Jeremy Dye"]
["GRC9","Gary Cox"]
["GROSENHA","Gregory Rosenhan"]
["HCAMP","Harper Camp"]
["HORTIN","Matt Hortin"]
["HUGHESA","Mike Hughes"]
["IDBAH4","Brad Hewitt"]
["IDDAVIDDT","David Tolman"]
["IDKBN85","Kael Nielsen"]
["IDSAMUELJA","Samuel Anderson"]
["IDTAYLOR86","Sam Taylor"]
["IDTKS3","Troy Sales"]
["IDTLF","Terry Fredericks"]
["JAJ233","Jeremy Jensen"]
["JASMINMO","Jasmin Oomrigar"]
["JBELL90","Juilanne Bell"]
["JDT4588","Jason Taylor"]
["JEB66","Jennifer Dodge"]
["JFRITZS2","Jordan Fritzsche"]
["JHM3","Jim Manookin"]
["JMC98","Josh Caldwell"]
["JMJ82","Justin Johns"]
["JMJA2","Justin Johns"]
["JMORSE2","Jason Morse"]
["JRM2","Rick McCoy"]
["JSH5","Scott Horman"]
["JTTHORIN","Joseph Thorin"]
["KBN85","Kael Nielsen"]
["KEG24","Ken Goepfert"]
["KKERCHER","Kellie Kercher"]
["KKH59","Katrina Hansen"]
["KL366","Kenneth Lutes (K.J.)"]
["KM362","Katie Mower"]
["KT285","Kevin Tahmoresi"]
["KW5","Keven Williamson"]
["LC23","Lyle Comte"]
["LDSJOHN","John Atkinson"]
["LORENHAW","Loren Ward"]
["MARKA","Mark Andersen"]
["MBC333","Michelle Christensen"]
["MBGOODMA","Brent Goodman"]
["MD26","Max Davis"]
["MDR36","Mike Ralls (Sparty)"]
["MHC38","Michael Carpenter"]
["MJA3","Mark Andersen"]
["MJARVIS2","Michael Jarvis"]
["MKH26","Mike Holdaway"]
["MLG","Mark Gheen"]
["MLINDQUI","Mike Lindquist"]
["MLJ46","Mike Johnson"]
["MR3","Marlae Rindlisbacher"]
["MRG2","Marty Garn"]
["MUDBUM","Bumyol Lee"]
["NBURCH","Nate Burch"]
["NE6","Nyle Ellison"]
["NFREEBIE","Neil Freebairn"]
["PATRICKF","Patrick Francom"]
["PBDILLON","Patrick Dillon"]
["PCH8","Paul Hardin"]
["PGS3","Parley Smith"]
["PRUMSEY","Paul Rumsey"]
["PUGH42","Mike Pugh"]
["RAR6","Randy Rowe"]
["RL7","Robert Little"]
["RLC69","Roger Cook"]
["RLE2","Rodney Evans"]
["RMCCOY","Rick McCoy"]
["ROSEMIKE","Michael Rosenberg"]
["RPR4","Russ Ridgeway"]
["RUNYAN","Vince Runyan"]
["RWE","Ron Emery"]
["SAMUELJA","Samuel Anderson"]
["SARIAHCB","Sariah Burdge"]
["SCHNEBS1","Peter Schnebley"]
["SCHRIST2","Seth Christensen"]
["SELDRED","Steve Eldredge"]
["SHH24","Scott Hunt"]
["SLASLEY","Sam Lasley"]
["SLB267","Steve Boren"]
["SLZ","Steve Zobell"]
["SMARCY","Spencer Marcy"]
["TAYLOR86","Samuel Taylor"]
["TDS6","Troy Streeter"]
["THW2","Tom Williams"]
["TKS3","Troy Sales"]
["TLF","Terry Fredericks"]
["TLNOBLE","Terry Noble"]
["UNKNOWN","UNKNOWN"]
["VRUNYAN","Vincent Runyan"]
["WCAMERO2","Cameron Warren"]
["WSC4","Willard Card"]
["YOGURT","Brandon Phillips"]
["BENHUGH","Benjamin Major"]
["JMONEY","Justin Stephenson"]
["NGUERRET","Nicolas Guerette"]
["QUINN6","Rachel Quinn"]
["GHENDRIC","Garrett Hendrickson"]
["GROSEHA","Gregory Rosenhan"]
["FDECKER","Fredrick Decker"]
["CHASMACC","Patrick MacCourtney (Chase)"]
["SLG12","Steven Guerrette"]
["KVERONIN","Katie Veronin"]
["BWILKIN2","Barbara Wilkinson"]
["JOESHMOE","Joey McEwen"]
["APG21","Andrew Germaine"]
["SURPLUS","SURPLUS"]
["JAL","Jim Low"]
["DAJ"]
["STOCK","Put into Stock"]
["GREIG","UNKNOWN (Talk to Andrew)"]